fUSD/lending_fUSD_20250105
["ID","MTS","AMOUNT","RATE_DAILY","PERIOD"]
[347720318,1736080271762,-500.0,9.041e-05,2]
[347720319,1736080271772,-406.415372,9.041e-05,2]
[347720320,1736080271781,-4625.69,9.041e-05,2]
[347720321,1736080271790,-8692.91,9.041e-05,2]
[347720322,1736080271800,-5484.28,9.041e-05,2]
[347720323,1736080271809,-500.0,9.041e-05,2]
[347720324,1736080271819,-500.0,9.041e-05,2]
[347720325,1736080271829,-500.0,9.041e-05,2]
[347720326,1736080271839,-2464.9,9.041e-05,2]
[347720327,1736080271848,-1926.73,9.041e-05,2]
[347720328,1736080271857,-500.0,9.041e-05,2]
[347720329,1736080271867,-373.380789,9.041e-05,2]
[347720330,1736080271876,-500.0,9.041e-05,2]
[347720331,1736080271885,-961.41,9.041e-05,2]
[347720332,1736080271894,-1725.70837766,9.041e-05,2]
[347720333,1736080271926,-2809.83162234,9.041e-05,2]
[347720334,1736080271935,-500.0,9.041e-05,2]
[347720335,1736080271944,-720.32,9.041e-05,2]
[347720336,1736080271953,-500.0,9.041e-05,2]
[347720337,1736080271962,-2106.21,9.041e-05,2]
[347720338,1736080271973,-500.0,9.041e-05,2]
[347720339,1736080271982,-363.996706,9.041e-05,2]
[347720340,1736080271991,-500.0,9.041e-05,2]
[347720341,1736080272000,-11442.77,9.041e-05,2]
[347720342,1736080272009,-500.0,9.041e-05,2]
[347720343,1736080272019,-500.0,9.041e-05,2]
[347720344,1736080272028,-546.61,9.041e-05,2]
[347720345,1736080272037,-383.842017,9.041e-05,2]
[347720346,1736080272046,-2532.99,9.041e-05,2]
[347720347,1736080272055,-500.0,9.041e-05,2]
[347720348,1736080272065,-9637.35,9.041e-05,2]
[347720349,1736080272074,-4231.29,9.041e-05,2]
[347720350,1736080272086,-1051.2,9.041e-05,2]
[347720351,1736080272095,-4818.98,9.041e-05,2]
[347720352,1736080272104,-358.71,9.041e-05,2]
[347720353,1736080272113,-6872.93,9.041e-05,2]
[347720354,1736080272123,-683.79,9.041e-05,2]
[347720355,1736080272132,-2131.59,9.041e-05,2]
[347720356,1736080272142,-3854.52,9.041e-05,2]
[347720357,1736080272151,-1024.77,9.041e-05,2]
[347720358,1736080272163,-500.0,9.041e-05,2]
[347720359,1736080272172,-347.473515,9.041e-05,2]
[347720360,1736080272181,-1786.19,9.041e-05,2]
[347720361,1736080272191,-500.0,9.041e-05,2]
[347720362,1736080272200,-500.0,9.041e-05,2]
[347720363,1736080272209,-1701.13,9.041e-05,2]
[347720364,1736080272218,-313.541995,9.041e-05,2]
[347720365,1736080272230,-1339.3,9.041e-05,2]
[347720366,1736080272240,-500.0,9.041e-05,2]
[347720367,1736080272250,-835.79,9.041e-05,2]
[347720368,1736080272260,-500.0,9.041e-05,2]
[347720369,1736080272270,-1685.25,9.041e-05,2]
[347720370,1736080272280,-500.0,9.041e-05,2]
[347720371,1736080272290,-1089.27,9.041e-05,2]
[347720372,1736080272300,-1600.55,9.041e-05,2]
[347720373,1736080272310,-500.0,9.041e-05,2]
[347720374,1736080272319,-5934.43,9.041e-05,2]
[347720375,1736080272328,-183.99,9.041e-05,2]
[347720376,1736080272339,-707.48,9.041e-05,2]
[347720377,1736080272349,-500.0,9.041e-05,2]
[347720378,1736080272359,-269.076453,9.041e-05,2]
[347720379,1736080272369,-1790.81,9.041e-05,2]
[347720380,1736080272378,-500.0,9.041e-05,2]
[347720381,1736080272389,-500.0,9.041e-05,2]
[347720382,1736080272398,-302.55,9.041e-05,2]
[347720383,1736080272408,-835.91,9.041e-05,2]
[347720384,1736080272418,-301.497753,9.041e-05,2]
[347720385,1736080272429,-4841.3,9.041e-05,2]
[347720386,1736080272439,-2400.52,9.041e-05,2]
[347720387,1736080272449,-500.0,9.041e-05,2]
[347720388,1736080272459,-1248.22,9.041e-05,2]
[347720389,1736080272468,-962.95,9.041e-05,2]
[347720390,1736080272480,-1965.25,9.041e-05,2]
[347720391,1736080272490,-500.0,9.041e-05,2]
[347720392,1736080272501,-1952.71,9.041e-05,2]
[347720393,1736080272511,-2011.32,9.041e-05,2]
[347720394,1736080272522,-500.0,9.041e-05,2]
[347720395,1736080272532,-500.0,9.041e-05,2]
[347720396,1736080272541,-234.364125,9.041e-05,2]
[347720397,1736080272551,-500.0,9.041e-05,2]
[347720398,1736080272561,-3398.38,9.041e-05,2]
[347720399,1736080272570,-1272.55,9.041e-05,2]
[347720400,1736080272581,-1407.71,9.041e-05,2]
[347720401,1736080272591,-500.0,9.041e-05,2]
[347720402,1736080272601,-1090.97,9.041e-05,2]
[347720403,1736080272611,-5339.17,9.041e-05,2]
[347720404,1736080272620,-1555.1,9.041e-05,2]
[347720405,1736080272629,-260.234757,9.041e-05,2]
[347720406,1736080272638,-1632.03,9.041e-05,2]
[347720407,1736080272648,-500.0,9.041e-05,2]
[347720408,1736080272658,-803.51,9.041e-05,2]
[347720409,1736080272668,-281.76,9.041e-05,2]
[347720410,1736080272679,-3335.18,9.041e-05,2]
[347720411,1736080272688,-1055.65,9.041e-05,2]
[347720412,1736080272698,-2591.63,9.041e-05,2]
[347720413,1736080272707,-1068.39,9.041e-05,2]
[347720414,1736080272717,-2640.68,9.041e-05,2]
[347720415,1736080272729,-500.0,9.041e-05,2]
[347720416,1736080272739,-1718.32,9.041e-05,2]
[347720417,1736080272749,-790.74,9.041e-05,2]
[347720418,1736080272759,-2268.33,9.041e-05,2]
[347720419,1736080272769,-2393.67,9.041e-05,2]
[347720420,1736080272779,-500.0,9.041e-05,2]
[347720421,1736080272789,-2304.68,9.041e-05,2]
[347720422,1736080272799,-200.0,9.041e-05,2]
[347720423,1736080272809,-162.03,9.05e-05,2]
[347720424,1736080272819,-150.0,9.052e-05,2]
[347720425,1736080272829,-500.0,9.072e-05,2]
[347720426,1736080272839,-500.0,9.072e-05,2]
[347720427,1736080272849,-150.0,9.09e-05,2]
[347720428,1736080272860,-429.58022011,9.092e-05,2]
[347720429,1736080272869,-5147.787,9.093e-05,2]
[347720430,1736080272879,-178.443,9.093e-05,2]
[347720431,1736080272889,-150.0,9.11e-05,2]
[347720432,1736080272898,-150.0,9.129e-05,2]
[347720433,1736080272908,-150.0,9.167e-05,2]
[347720434,1736080272918,-500.0,9.177e-05,2]
[347720435,1736080272928,-960.28,9.198e-05,2]
[347720436,1736080272937,-150.0,9.205e-05,2]
[347720437,1736080272947,-150.0,9.205e-05,2]
[347720438,1736080272957,-150.0,9.244e-05,2]
[347720439,1736080272966,-1000.0,9.247e-05,2]
[347720440,1736080272979,-990.44403302,9.249e-05,2]
[347720441,1736080272988,-150.0,9.269e-05,2]
[347720442,1736080272998,-150.0,9.282e-05,2]
[347720443,1736080273008,-150.0,9.301e-05,2]
[347720444,1736080273018,-500.0,9.314e-05,2]
[347720445,1736080273028,-2416.75,9.314e-05,2]
[347720446,1736080273038,-2032.85,9.314e-05,2]
[347720447,1736080273048,-1647.9,9.314e-05,2]
[347720448,1736080273057,-1025.91,9.314e-05,2]
[347720449,1736080273068,-2821.97,9.314e-05,2]
[347720450,1736080273078,-3120.88,9.314e-05,2]
[347720451,1736080273090,-2283.96,9.314e-05,2]
[347720452,1736080273099,-1707.1,9.314e-05,2]
[347720453,1736080273109,-2992.0,9.314e-05,2]
[347720454,1736080273119,-6255.8,9.314e-05,2]
[347720455,1736080273130,-1644.92,9.315e-05,2]
[347720456,1736080273140,-3048.57,9.315e-05,2]
[347720457,1736080273150,-5235.68,9.315e-05,2]
[347720458,1736080273160,-3246.15,9.315e-05,2]
[347720459,1736080273170,-2892.65,9.315e-05,2]
[347720460,1736080273179,-6257.6,9.315e-05,2]
[347720461,1736080273190,-2746.81,9.315e-05,2]
[347720462,1736080273199,-500.0,9.315e-05,2]
[347720463,1736080273209,-1616.02,9.315e-05,2]
[347720464,1736080273219,-500.0,9.315e-05,2]
[347720465,1736080273231,-957.81,9.315e-05,2]
[347720466,1736080273241,-500.0,9.315e-05,2]
[347720467,1736080273251,-634.21,9.315e-05,2]
[347720468,1736080273261,-500.0,9.315e-05,2]
[347720469,1736080273271,-500.0,9.315e-05,2]
[347720470,1736080273280,-530.25,9.315e-05,2]
[347720471,1736080273291,-522.05,9.315e-05,2]
[347720472,1736080273300,-500.0,9.315e-05,2]
[347720473,1736080273310,-500.0,9.315e-05,2]
[347720474,1736080273320,-600.43,9.315e-05,2]
[347720475,1736080273329,-500.0,9.315e-05,2]
[347720476,1736080273339,-832.35,9.315e-05,2]
[347720477,1736080273349,-500.0,9.315e-05,2]
[347720478,1736080273359,-625.59,9.315e-05,2]
[347720479,1736080273369,-500.0,9.315e-05,2]
[347720480,1736080273378,-500.0,9.315e-05,2]
[347720481,1736080273388,-500.0,9.315e-05,2]
[347720482,1736080273398,-500.0,9.315e-05,2]
[347720483,1736080273408,-515.12,9.315e-05,2]
[347720484,1736080273417,-415.19,9.315e-05,2]
[347720485,1736080273427,-500.0,9.315e-05,2]
[347720486,1736080273437,-500.0,9.315e-05,2]
[347720487,1736080273447,-813.5,9.315e-05,2]
[347720488,1736080273457,-632.88,9.315e-05,2]
[347720489,1736080273467,-500.0,9.315e-05,2]
[347720490,1736080273480,-818.24,9.315e-05,2]
[347720491,1736080273490,-6082.16,9.315e-05,2]
[347720492,1736080273500,-500.0,9.315e-05,2]
[347720493,1736080273513,-500.0,9.315e-05,2]
[347720494,1736080273523,-500.0,9.315e-05,2]
[347720495,1736080273532,-869.6,9.315e-05,2]
[347720496,1736080273542,-640.96,9.315e-05,2]
[347720497,1736080273552,-613.5,9.315e-05,2]
[347720498,1736080273562,-500.0,9.315e-05,2]
[347720499,1736080273572,-500.0,9.315e-05,2]
[347720500,1736080273582,-2245.29,9.315e-05,2]
[347720501,1736080273592,-500.0,9.315e-05,2]
[347720502,1736080273603,-500.0,9.315e-05,2]
[347720503,1736080273613,-581.99,9.315e-05,2]
[347720504,1736080273623,-500.0,9.315e-05,2]
[347720505,1736080273634,-500.0,9.315e-05,2]
[347720506,1736080273644,-500.0,9.315e-05,2]
[347720507,1736080273655,-544.32,9.315e-05,2]
[347720508,1736080273666,-500.0,9.315e-05,2]
[347720509,1736080273675,-813.47,9.315e-05,2]
[347720510,1736080273685,-500.0,9.315e-05,2]
[347720511,1736080273695,-500.0,9.315e-05,2]
[347720512,1736080273705,-831.66,9.315e-05,2]
[347720513,1736080273715,-500.0,9.315e-05,2]
[347720514,1736080273727,-500.0,9.315e-05,2]
[347720515,1736080273737,-500.0,9.315e-05,2]
[347720516,1736080273747,-448.28,9.315e-05,2]
[347720517,1736080273758,-500.0,9.315e-05,2]
[347720518,1736080273767,-500.0,9.315e-05,2]
[347720519,1736080273778,-500.0,9.315e-05,2]
[347720520,1736080273788,-2486.44,9.315e-05,2]
[347720521,1736080273797,-593.4,9.315e-05,2]
[347720522,1736080273807,-500.0,9.315e-05,2]
[347720523,1736080273817,-500.0,9.315e-05,2]
[347720524,1736080273827,-500.0,9.315e-05,2]
[347720525,1736080273836,-500.0,9.315e-05,2]
[347720526,1736080273846,-500.0,9.315e-05,2]
[347720527,1736080273856,-500.0,9.315e-05,2]
[347720528,1736080273865,-500.0,9.315e-05,2]
[347720529,1736080273874,-500.0,9.315e-05,2]
[347720530,1736080273884,-500.0,9.315e-05,2]
[347720531,1736080273894,-1602.77,9.315e-05,2]
[347720532,1736080273904,-432.8,9.315e-05,2]
[347720533,1736080273913,-894.44,9.315e-05,2]
[347720534,1736080273923,-500.0,9.315e-05,2]
[347720535,1736080273933,-746.86,9.315e-05,2]
[347720536,1736080273943,-500.0,9.315e-05,2]
[347720537,1736080273952,-503.47,9.315e-05,2]
[347720538,1736080273962,-154.08,9.315e-05,2]
[347720539,1736080273972,-500.0,9.315e-05,2]
[347720540,1736080273982,-1850.61,9.315e-05,2]
[347720541,1736080273991,-1058.88,9.315e-05,2]
[347720542,1736080274001,-976.39,9.315e-05,2]
[347720543,1736080274010,-500.0,9.315e-05,2]
[347720544,1736080274020,-162.81,9.315e-05,2]
[347720545,1736080274030,-178.12,9.315e-05,2]
[347720546,1736080274040,-785.66,9.315e-05,2]
[347720547,1736080274049,-10023.3,9.315e-05,2]
[347720548,1736080274059,-500.0,9.315e-05,2]
[347720549,1736080274071,-500.0,9.315e-05,2]
[347720550,1736080274086,-500.0,9.315e-05,2]
[347720551,1736080274096,-863.14,9.315e-05,2]
[347720552,1736080274106,-1124.55,9.315e-05,2]
[347720553,1736080274116,-753.99,9.315e-05,2]
[347720554,1736080274127,-500.0,9.315e-05,2]
[347720555,1736080274137,-950.36,9.315e-05,2]
[347720556,1736080274147,-500.0,9.315e-05,2]
[347720557,1736080274157,-633.36,9.315e-05,2]
[347720558,1736080274167,-731.56,9.315e-05,2]
[347720559,1736080274178,-535.78,9.315e-05,2]
[347720560,1736080274189,-668.64,9.315e-05,2]
[347720561,1736080274198,-500.0,9.315e-05,2]
[347720562,1736080274208,-785.58,9.315e-05,2]
[347720563,1736080274218,-1650.61,9.315e-05,2]
[347720564,1736080274230,-722.21,9.315e-05,2]
[347720565,1736080274240,-991.98,9.315e-05,2]
[347720566,1736080274250,-500.0,9.315e-05,2]
[347720567,1736080274260,-511.2,9.315e-05,2]
[347720568,1736080274270,-500.0,9.315e-05,2]
[347720569,1736080274279,-624.64,9.315e-05,2]
[347720570,1736080274290,-500.0,9.315e-05,2]
[347720571,1736080274299,-500.0,9.315e-05,2]
[347720572,1736080274309,-500.0,9.315e-05,2]
[347720573,1736080274319,-500.0,9.315e-05,2]
[347720574,1736080274329,-732.45,9.315e-05,2]
[347720575,1736080274339,-1050.73,9.315e-05,2]
[347720576,1736080274349,-503.66,9.315e-05,2]
[347720577,1736080274359,-500.0,9.315e-05,2]
[347720578,1736080274369,-500.0,9.315e-05,2]
[347720579,1736080274378,-550.0924056,9.315e-05,2]
[347720580,1736080274389,-1232.69,9.315e-05,2]
[347720581,1736080274400,-500.0,9.315e-05,2]
[347720582,1736080274410,-773.19,9.315e-05,2]
[347720583,1736080274420,-500.0,9.315e-05,2]
[347720584,1736080274431,-759.87,9.315e-05,2]
[347720585,1736080274442,-500.0,9.315e-05,2]
[347720586,1736080274454,-500.0,9.315e-05,2]
[347720587,1736080274466,-500.0,9.315e-05,2]
[347720588,1736080274476,-500.0,9.315e-05,2]
[347720589,1736080274486,-860.49,9.315e-05,2]
[347720590,1736080274496,-2193.02,9.315e-05,2]
[347720591,1736080274507,-766.35,9.315e-05,2]
[347720592,1736080274517,-1210.17,9.315e-05,2]
[347720593,1736080274527,-1591.42,9.315e-05,2]
[347720594,1736080274538,-500.0,9.315e-05,2]
[347720595,1736080274550,-739.43,9.315e-05,2]
[347720596,1736080274561,-1271.87,9.315e-05,2]
[347720597,1736080274842,-500.0,9.315e-05,2]
[347720598,1736080274865,-500.0,9.315e-05,2]
[347720599,1736080274876,-1196.04,9.315e-05,2]
[347720600,1736080274885,-500.0,9.315e-05,2]
[347720601,1736080274895,-852.87,9.315e-05,2]
[347720602,1736080274904,-2136.27,9.315e-05,2]
[347720603,1736080274913,-500.0,9.315e-05,2]
[347720604,1736080274922,-500.0,9.315e-05,2]
[347720605,1736080274931,-500.0,9.315e-05,2]
[347720606,1736080274941,-511.67,9.315e-05,2]
[347720607,1736080274950,-708.89,9.315e-05,2]
[347720608,1736080274959,-698.53,9.315e-05,2]
[347720609,1736080274968,-1544.38,9.315e-05,2]
[347720610,1736080274978,-500.0,9.315e-05,2]
[347720611,1736080274988,-500.0,9.315e-05,2]
[347720612,1736080274997,-500.0,9.315e-05,2]
[347720613,1736080275006,-954.05,9.315e-05,2]
[347720614,1736080275016,-500.0,9.315e-05,2]
[347720615,1736080275025,-500.0,9.315e-05,2]
[347720616,1736080275035,-655.42,9.315e-05,2]
[347720617,1736080275044,-500.0,9.315e-05,2]
[347720618,1736080275053,-413.2,9.315e-05,2]
[347720619,1736080275063,-500.0,9.315e-05,2]
[347720620,1736080275072,-500.0,9.315e-05,2]
[347720621,1736080275084,-2478.54,9.315e-05,2]
[347720622,1736080275093,-993.2,9.315e-05,2]
[347720623,1736080275105,-801.36,9.315e-05,2]
[347720624,1736080275114,-1410.21,9.315e-05,2]
[347720625,1736080275124,-500.0,9.315e-05,2]
[347720626,1736080275133,-3025.51,9.315e-05,2]
[347720627,1736080275142,-500.0,9.315e-05,2]
[347720628,1736080275152,-642.56,9.315e-05,2]
[347720629,1736080275161,-1404.65,9.315e-05,2]
[347720630,1736080275171,-500.0,9.315e-05,2]
[347720631,1736080275180,-500.0,9.315e-05,2]
[347720632,1736080275189,-500.0,9.315e-05,2]
[347720633,1736080275198,-500.0,9.315e-05,2]
[347720634,1736080275207,-737.08,9.315e-05,2]
[347720635,1736080275217,-500.0,9.315e-05,2]
[347720636,1736080275227,-950.12,9.315e-05,2]
[347720637,1736080275236,-746.3,9.315e-05,2]
[347720638,1736080275246,-762.46,9.315e-05,2]
[347720639,1736080275255,-1387.95,9.315e-05,2]
[347720640,1736080275265,-754.35,9.315e-05,2]
[347720641,1736080275274,-500.0,9.315e-05,2]
[347720642,1736080275283,-650.91,9.315e-05,2]
[347720643,1736080275293,-500.0,9.315e-05,2]
[347720644,1736080275302,-500.0,9.315e-05,2]
[347720645,1736080275311,-723.11,9.315e-05,2]
[347720646,1736080275320,-3070.38,9.315e-05,2]
[347720647,1736080275329,-968.27,9.315e-05,2]
[347720648,1736080275338,-1308.02,9.315e-05,2]
[347720649,1736080275348,-500.0,9.315e-05,2]
[347720650,1736080275358,-500.0,9.315e-05,2]
[347720651,1736080275367,-831.84,9.315e-05,2]
[347720652,1736080275376,-2749.24,9.315e-05,2]
[347720653,1736080275385,-1325.87,9.315e-05,2]
[347720654,1736080275395,-879.89,9.315e-05,2]
[347720655,1736080275404,-500.0,9.315e-05,2]
[347720656,1736080275413,-764.96,9.315e-05,2]
[347720657,1736080275422,-568.36,9.315e-05,2]
[347720658,1736080275431,-1503.27,9.315e-05,2]
[347720659,1736080275440,-1395.91,9.315e-05,2]
[347720660,1736080275450,-930.17,9.315e-05,2]
[347720661,1736080275459,-500.0,9.315e-05,2]
[347720662,1736080275468,-500.0,9.315e-05,2]
[347720663,1736080275478,-1517.92,9.315e-05,2]
[347720664,1736080275487,-338.62619963,9.315e-05,2]
[347720665,1736080275496,-864.84,9.315e-05,2]
[347720666,1736080275506,-500.0,9.315e-05,2]
[347720667,1736080275516,-596.09,9.315e-05,2]
[347720668,1736080275526,-890.71,9.315e-05,2]
[347720669,1736080275536,-500.0,9.315e-05,2]
[347720670,1736080275545,-622.72,9.315e-05,2]
[347720671,1736080275554,-2234.3,9.315e-05,2]
[347720672,1736080275563,-2740.23,9.315e-05,2]
[347720673,1736080275573,-500.0,9.315e-05,2]
[347720674,1736080275583,-500.0,9.315e-05,2]
[347720675,1736080275593,-1856.71,9.315e-05,2]
[347720676,1736080275603,-1425.78,9.315e-05,2]
[347720677,1736080275615,-500.0,9.315e-05,2]
[347720678,1736080275625,-500.0,9.315e-05,2]
[347720679,1736080275635,-500.0,9.315e-05,2]
[347720680,1736080275644,-500.0,9.315e-05,2]
[347720681,1736080275654,-625.54,9.315e-05,2]
[347720682,1736080275663,-832.16,9.315e-05,2]
[347720683,1736080275673,-873.47,9.315e-05,2]
[347720684,1736080275684,-500.0,9.315e-05,2]
[347720685,1736080275693,-808.62,9.315e-05,2]
[347720686,1736080275703,-448.92,9.315e-05,2]
[347720687,1736080275712,-761.6,9.315e-05,2]
[347720688,1736080275723,-232.28,9.315e-05,2]
[347720689,1736080275732,-500.0,9.315e-05,2]
[347720690,1736080275742,-951.77,9.315e-05,2]
[347720691,1736080275751,-500.0,9.315e-05,2]
[347720692,1736080275762,-500.0,9.315e-05,2]
[347720693,1736080275772,-3563.41,9.315e-05,2]
[347720694,1736080275781,-644.39,9.315e-05,2]
[347720695,1736080275790,-500.0,9.315e-05,2]
[347720696,1736080275798,-500.0,9.315e-05,2]
[347720697,1736080275807,-500.0,9.315e-05,2]
[347720698,1736080275818,-500.0,9.315e-05,2]
[347720699,1736080275828,-502.21,9.315e-05,2]
[347720700,1736080275837,-500.0,9.315e-05,2]
[347720701,1736080275846,-843.93,9.315e-05,2]
[347720702,1736080275856,-910.58,9.315e-05,2]
[347720703,1736080275866,-500.0,9.315e-05,2]
[347720704,1736080275877,-376.22611491,9.315e-05,2]
[347720705,1736080275887,-500.0,9.315e-05,2]
[347720706,1736080275896,-1613.49,9.315e-05,2]
[347720707,1736080275905,-500.0,9.315e-05,2]
[347720708,1736080275915,-735.41,9.315e-05,2]
[347720709,1736080275926,-813.76,9.315e-05,2]
[347720710,1736080275937,-3394.74,9.315e-05,2]
[347720711,1736080275947,-5150.86,9.315e-05,2]
[347720712,1736080275957,-689.67,9.315e-05,2]
[347720713,1736080275967,-944.87,9.315e-05,2]
[347720714,1736080275977,-655.36,9.315e-05,2]
[347720715,1736080275987,-1446.73,9.315e-05,2]
[347720716,1736080275996,-1021.37,9.315e-05,2]
[347720717,1736080276007,-720.85,9.315e-05,2]
[347720718,1736080276018,-565.47,9.315e-05,2]
[347720719,1736080276027,-1877.66,9.315e-05,2]
[347720720,1736080276037,-500.0,9.315e-05,2]
[347720721,1736080276047,-500.0,9.315e-05,2]
[347720722,1736080276057,-2158.66,9.315e-05,2]
[347720723,1736080276066,-2343.82,9.315e-05,2]
[347720724,1736080276076,-541.9,9.315e-05,2]
[347720725,1736080276091,-500.0,9.315e-05,2]
[347720726,1736080276100,-913.72,9.315e-05,2]
[347720727,1736080276109,-1014.2,9.315e-05,2]
[347720728,1736080276120,-372.13,9.315e-05,2]
[347720729,1736080276130,-3941.55,9.315e-05,2]
[347720730,1736080276139,-500.0,9.315e-05,2]
[347720731,1736080276148,-1016.92,9.315e-05,2]
[347720732,1736080276159,-1848.78,9.315e-05,2]
[347720733,1736080276168,-673.74,9.315e-05,2]
[347720734,1736080276178,-475.57,9.315e-05,2]
[347720735,1736080276189,-500.0,9.315e-05,2]
[347720736,1736080276199,-500.0,9.315e-05,2]
[347720737,1736080276210,-500.0,9.315e-05,2]
[347720738,1736080276220,-670.64,9.315e-05,2]
[347720739,1736080276230,-500.0,9.315e-05,2]
[347720740,1736080276240,-500.0,9.315e-05,2]
[347720741,1736080276250,-532.39,9.315e-05,2]
[347720742,1736080276259,-1754.35,9.315e-05,2]
[347720743,1736080276268,-500.0,9.315e-05,2]
[347720744,1736080276278,-500.0,9.315e-05,2]
[347720745,1736080276288,-728.56,9.315e-05,2]
[347720746,1736080276297,-500.0,9.315e-05,2]
[347720747,1736080276307,-500.0,9.315e-05,2]
[347720748,1736080276317,-848.05,9.315e-05,2]
[347720749,1736080276327,-596.96,9.315e-05,2]
[347720750,1736080276337,-910.76,9.315e-05,2]
[347720751,1736080276346,-1377.71,9.315e-05,2]
[347720752,1736080276356,-500.0,9.315e-05,2]
[347720753,1736080276366,-845.81,9.315e-05,2]
[347720754,1736080276375,-500.0,9.315e-05,2]
[347720755,1736080276385,-2557.48,9.315e-05,2]
[347720756,1736080276397,-8267.71,9.315e-05,2]
[347720757,1736080276408,-1843.47,9.315e-05,2]
[347720758,1736080276422,-500.0,9.315e-05,2]
[347720759,1736080276431,-500.0,9.315e-05,2]
[347720760,1736080276441,-4927.54,9.315e-05,2]
[347720761,1736080276451,-500.0,9.315e-05,2]
[347720762,1736080276460,-500.0,9.315e-05,2]
[347720763,1736080276469,-859.68,9.315e-05,2]
[347720764,1736080276479,-500.0,9.315e-05,2]
[347720765,1736080276489,-500.0,9.315e-05,2]
[347720766,1736080276498,-500.0,9.315e-05,2]
[347720767,1736080276508,-1334.48,9.315e-05,2]
[347720768,1736080276517,-1181.27,9.315e-05,2]
[347720769,1736080276527,-500.0,9.315e-05,2]
[347720770,1736080276538,-500.0,9.315e-05,2]
[347720771,1736080276547,-836.03,9.315e-05,2]
[347720772,1736080276557,-841.25,9.315e-05,2]
[347720773,1736080276566,-622.4,9.315e-05,2]
[347720774,1736080276576,-500.0,9.315e-05,2]
[347720775,1736080276586,-500.0,9.315e-05,2]
[347720776,1736080276596,-1431.27,9.315e-05,2]
[347720777,1736080276605,-587.23,9.315e-05,2]
[347720778,1736080276616,-500.0,9.315e-05,2]
[347720779,1736080276626,-629.29,9.315e-05,2]
[347720780,1736080276635,-500.0,9.315e-05,2]
[347720781,1736080276645,-500.0,9.315e-05,2]
[347720782,1736080276654,-4802.2,9.315e-05,2]
[347720783,1736080276663,-500.0,9.315e-05,2]
[347720784,1736080276672,-727.91,9.315e-05,2]
[347720785,1736080276682,-500.0,9.315e-05,2]
[347720786,1736080276690,-500.0,9.315e-05,2]
[347720787,1736080276698,-888.06,9.315e-05,2]
[347720788,1736080276708,-500.0,9.315e-05,2]
[347720789,1736080276717,-500.0,9.315e-05,2]
[347720790,1736080276728,-1936.68,9.315e-05,2]
[347720791,1736080276737,-3459.29,9.315e-05,2]
[347720792,1736080276747,-726.5,9.315e-05,2]
[347720793,1736080276756,-500.0,9.315e-05,2]
[347720794,1736080276765,-500.0,9.315e-05,2]
[347720795,1736080276775,-859.55,9.315e-05,2]
[347720796,1736080276784,-500.0,9.315e-05,2]
[347720797,1736080276793,-500.0,9.315e-05,2]
[347720798,1736080276802,-500.0,9.315e-05,2]
[347720799,1736080276812,-1155.24,9.315e-05,2]
[347720800,1736080276821,-838.92,9.315e-05,2]
[347720801,1736080276830,-714.39,9.315e-05,2]
[347720802,1736080276840,-931.02,9.315e-05,2]
[347720803,1736080276849,-3444.04,9.315e-05,2]
[347720804,1736080276859,-667.6,9.315e-05,2]
[347720805,1736080276868,-972.4,9.315e-05,2]
[347720806,1736080276877,-662.67,9.315e-05,2]
[347720807,1736080276886,-500.0,9.315e-05,2]
[347720808,1736080276894,-710.82,9.315e-05,2]
[347720809,1736080276904,-500.0,9.315e-05,2]
[347720810,1736080276913,-500.0,9.315e-05,2]
[347720811,1736080276922,-500.0,9.315e-05,2]
[347720812,1736080276932,-5863.8,9.315e-05,2]
[347720813,1736080276941,-500.0,9.315e-05,2]
[347720814,1736080276950,-580.01,9.315e-05,2]
[347720815,1736080276960,-1582.22,9.315e-05,2]
[347720816,1736080276969,-1585.45,9.315e-05,2]
[347720817,1736080276979,-500.0,9.315e-05,2]